{"text_format":"1","workbook":"xlsx","n_sheets":1,"sheets":["Perimeter"],"not_rendered":{"charts":0,"images":0,"macros":1,"external_links":0,"defined_names":2,"comments":0,"pivot_tables":0},"unopened":[],"bounds":{"document_bytes":16777216,"sheet_cells":100000,"rows_first":2000,"rows_last":500,"rows_between":2000,"halvings":0,"cell_chars":16384,"cell_head_chars":4096},"cells_cut":0,"cells_raw":0,"read":"whole","date_system":"1900"}

{"sheet":"Perimeter","index":0,"n_rows":89,"n_cols":54,"rows_kept":89,"cut":false,"hidden":false,"merged":[[68,32,69,33],[74,26,75,27],[75,31,76,32],[88,35,88,36],[76,13,76,17],[76,18,76,21],[82,18,82,21],[82,26,82,27],[82,12,82,17],[77,34,77,35],[86,41,87,42],[84,38,85,39],[82,35,83,36],[81,37,81,38],[85,35,85,36],[67,41,67,42],[1,1,4,42],[46,18,46,21],[21,33,21,35],[43,34,43,35],[35,26,35,27],[18,36,18,38],[40,35,40,39],[61,13,61,17],[7,24,7,25],[18,27,18,28],[31,33,31,34],[29,25,29,26],[49,35,49,36],[53,36,53,37],[54,18,54,21],[73,38,73,39],[39,18,39,21],[60,37,60,38],[30,26,30,27],[9,34,9,36],[9,18,9,21],[21,18,21,21],[30,18,30,21],[45,24,45,25],[37,30,37,31],[55,31,55,40],[52,28,54,30],[51,38,51,40],[70,36,71,37],[61,18,61,21],[68,18,68,21]]}
[]
[null,"Perimeter                                                                                                                                                                   Created by Mr.Lafferty@mathsrevision.com                                                                                                                                                          "]
[]
[]
[]
[]
[null,{"$f":"\"Q1.  Find the perimeter of the rectangle opposite.\"","v":"Q1.  Find the perimeter of the rectangle opposite."}]
[null,null,null,null,null,null,null,null,null,null,null,null,null,null,null,null,null,null,null,null,null,null,null,null,{"$f":"ROUND(RAND()*(5-2)+2,0)*10","v":20},null,"cm"]
[]
[null,null,null,null,null,null,null,null,null,null,null,null,null,null,null,null,null,null,null,null,null,null,"cm",null,null,null,null,null,null,null,null,null,null,null,{"$f":"Y8*ROUND(RAND()*(3-2)+2,2)","v":41.6},null,null,"cm",null,null,null,null,null,null,null,null,null,null,null,null,null,{"$f":"2*(Y8+AI10)","v":123.2}]
[]
[]
[]
[]
[]
[]
[]
[null,{"$f":"\"Q2.  Find the perimeter of the right-angled triangle.\"","v":"Q2.  Find the perimeter of the right-angled triangle."},null,null,null,null,null,null,null,null,null,null,null,null,null,null,null,null,null,null,null,null,null,null,null,null,null,null,null,null,null,null,null,null,null,null,null,null,null,null,null,null,null,null,null,null,null,null,null,null,null,{"$f":"ROUND(SQRT(AB19*AB19+AH22+AH22),1)","v":32.5}]
[null,null,null,null,null,null,null,null,null,null,null,null,null,null,null,null,null,null,null,null,null,null,null,null,null,null,null,{"$f":"ROUND(RAND()*(5-2)+2,0)*10","v":30},null,"cm",null,null,null,null,null,null,{"$f":"AZ18","v":32.5},null,null,"cm"]
[]
[]
[null,null,null,null,null,null,null,null,null,null,null,null,null,null,null,null,null,null,null,null,null,null,"cm",null,null,null,null,null,null,null,null,null,null,{"$f":"AB19*ROUND(RAND()*(3-2)+2,2)","v":77.099999999999994},null,null,"cm",null,null,null,null,null,null,null,null,null,null,null,null,null,null,{"$f":"AH22+AB19+AK19","v":139.6}]
[]
[]
[]
[]
[]
[null,{"$f":"\"Q3.  The two triangles are identical. Find the perimeter of the composite shape.\"","v":"Q3.  The two triangles are identical. Find the perimeter of the composite shape."},null,null,null,null,null,null,null,null,null,null,null,null,null,null,null,null,null,null,null,null,null,null,null,null,null,null,null,null,null,null,null,null,null,null,null,null,null,null,{"$f":"ROUND(RAND()*(4-2)+2,0)*2","v":6},"cm"]
[]
[null,null,null,null,null,null,null,null,null,null,null,null,null,null,null,null,null,null,null,null,null,null,null,null,null,{"$f":"ROUND(RAND()*(10-5)+5,0)*2","v":16},null,"cm"]
[null,null,null,null,null,null,null,null,null,null,null,null,null,null,null,null,null,null,null,null,null,null,"cm",null,null,null,null,null,null,null,null,null,null,null,null,null,null,null,null,null,null,null,null,null,null,null,null,null,null,null,null,{"$f":"AH32*2+Z30*2+AO28*2","v":104}]
[null,null,null,null,null,null,null,null,null,null,null,null,null,null,null,null,null,null,null,null,null,null,null,null,null,null,null,null,null,null,null,null,null,{"$f":"ROUND(RAND()*(6-3)+3,0)*10","v":30},null,"cm"]
[]
[]
[]
[null,{"$f":"\"Q4.  Find the perimeter of the square.\"","v":"Q4.  Find the perimeter of the square."}]
[]
[]
[null,null,null,null,null,null,null,null,null,null,null,null,null,null,null,null,null,null,null,null,null,null,null,null,null,null,null,null,null,null,null,null,null,null,null,null,null,null,null,null,null,null,null,null,null,null,null,null,null,null,null,{"$f":"ROUND(RAND()*(100-5)+5,0)","v":87},"m"]
[null,null,null,null,null,null,null,null,null,null,null,null,null,null,null,null,null,null,null,null,null,null,"m",null,null,null,null,null,null,null,null,null,null,null,null,null,null,null,null,null,null,null,null,null,null,null,null,null,null,null,null,{"$f":"4*AZ39","v":348}]
[null,null,null,null,null,null,null,null,null,null,null,null,null,null,null,null,null,null,null,null,null,null,null,null,null,null,null,null,null,null,null,null,null,null,null,{"$f":"CONCATENATE(AZ39,BA39)","v":"87m"}]
[]
[]
[null,{"$f":"\"Q5.  Find the perimeter of the circle correct to 1 decimal place.\"","v":"Q5.  Find the perimeter of the circle correct to 1 decimal place."}]
[]
[]
[null,null,null,null,null,null,null,null,null,null,null,null,null,null,null,null,null,null,null,null,null,null,"m",null,null,null,null,null,null,null,null,null,null,null,null,null,null,null,null,null,null,null,null,null,null,null,null,null,null,null,null,{"$f":"ROUND(PI()*AJ50,1)","v":62.8}]
[]
[]
[null,null,null,null,null,null,null,null,null,null,null,null,null,null,null,null,null,null,null,null,null,null,null,null,null,null,null,null,null,null,null,null,null,null,null,{"$f":"ROUND((RAND()*(20-4)+4),0)","v":20},null,"m"]
[]
[null,{"$f":"\"Q6.  Find the \"&BB52&\" of the rectangle given the perimeter is \"&AZ55&\"m\"","v":"Q6.  Find the breadth of the rectangle given the perimeter is 336m"},null,null,null,null,null,null,null,null,null,null,null,null,null,null,null,null,null,null,null,null,null,null,null,null,null,null,null,null,null,null,null,null,null,null,null,null,null,null,null,null,null,null,null,null,null,null,null,null,null,{"$f":"ROUND(RAND()*(1-0)+0,0)","v":0},null,{"$f":"IF(AZ52=1,\"length\",\"breadth\")","v":"breadth"}]
[null,null,null,null,null,null,null,null,null,null,null,null,null,null,null,null,null,null,null,null,null,null,null,null,null,null,null,null,{"$f":"BB54","v":"m"},null,null,null,null,null,null,null,null,null,null,null,null,null,null,null,null,null,null,null,null,null,null,{"$f":"ROUND(RAND()*(150-30)+30,0)","v":126},{"$f":"IF(AZ52=0,AZ53,\"\")","v":126},{"$f":"CONCATENATE(BA53,\"m\")","v":"126m"}]
[null,null,null,null,null,null,null,null,null,null,null,null,null,null,null,null,null,null,null,null,null,null,null,null,null,null,null,null,null,null,null,null,null,null,null,null,null,null,null,null,null,null,null,null,null,null,null,null,null,null,null,{"$f":"ROUND(AZ53/3,0)","v":42},{"$f":"IF(AZ52=1,AZ54,\"\")","v":""},{"$f":"CONCATENATE(BA54,\"m\")","v":"m"}]
[null,null,null,null,null,null,null,null,null,null,null,null,null,"breadth =",null,null,null,null,null,null,null,null,"m",null,null,null,null,null,null,null,null,null,null,null,null,null,null,null,null,null,null,null,null,null,null,null,null,null,null,null,null,{"$f":"2*(AZ53+AZ54)","v":336}]
[null,null,null,null,null,null,null,null,null,null,null,null,null,null,null,null,null,null,null,null,null,null,null,null,null,null,null,null,null,null,null,{"$f":"BB53","v":"126m"},null,null,null,null,null,null,null,null,null,null,null,null,null,null,null,null,null,null,null,{"$f":"IF(AZ52=0,AZ54,AZ53)","v":42}]
[]
[]
[]
[null,{"$f":"\"Q7. Find the length of the square given the perimeter is \"&AZ60&\"m. \"","v":"Q7. Find the length of the square given the perimeter is 60m. "},null,null,null,null,null,null,null,null,null,null,null,null,null,null,null,null,null,null,null,null,null,null,null,null,null,null,null,null,null,null,null,null,null,null,null,null,null,null,null,null,null,null,null,null,null,null,null,null,null,{"$f":"AZ62*4","v":60}]
[]
[null,null,null,null,null,null,null,null,null,null,null,null,null,null,null,null,null,null,null,null,null,null,"m",null,null,null,null,null,null,null,null,null,null,null,null,null,null,null,null,null,null,null,null,null,null,null,null,null,null,null,null,{"$f":"ROUND(RAND()*(99-11)+11,0)","v":15}]
[]
[]
[]
[null,{"$f":"\"Q8.  Find the perimeter of the shape. All values are in metres.\"","v":"Q8.  Find the perimeter of the shape. All values are in metres."},null,null,null,null,null,null,null,null,null,null,null,null,null,null,null,null,null,null,null,null,null,null,null,null,null,null,null,null,null,null,null,null,null,null,null,null,null,{"$f":"ROUND(AK71*ROUND(RAND()*(0.55-0.45)+0.45,2),0)","v":26},null,null,null,null,null,null,null,null,null,null,null,{"$f":"AP68-AG69","v":6}]
[null,null,null,null,null,null,null,null,null,null,null,null,null,null,null,null,null,null,null,null,null,null,null,null,null,null,null,null,null,null,null,null,null,null,null,null,null,"?",null,null,null,null,null,null,null,null,null,null,null,null,null,{"$f":"AK71-AN66","v":22}]
[null,null,null,null,null,null,null,null,null,null,null,null,null,null,null,null,null,null,null,null,null,null,null,null,null,null,null,null,null,null,null,null,null,null,null,"?",null,null,null,null,null,{"$f":"ROUND(RAND()*(10-5)+5,0)*2","v":10}]
[null,null,null,null,null,null,null,null,null,null,null,null,null,null,null,null,null,null,null,null,null,null,"m",null,null,null,null,null,null,null,null,null,{"$f":"ROUND(AP68*0.4,0)","v":4},null,null,null,null,null,null,null,null,null,null,null,null,null,null,null,null,null,null,{"$f":"AN66+AP68+AK71+AG69+AZ67+AZ66","v":116}]
[]
[null,null,null,null,null,null,null,null,null,null,null,null,null,null,null,null,null,null,null,null,null,null,null,null,null,null,null,null,null,null,null,null,null,null,null,null,{"$f":"ROUND(RAND()*(80-40)+40,0)","v":48}]
[]
[]
[null,null,null,null,null,null,null,null,null,null,null,null,null,null,null,null,null,null,null,null,null,null,null,null,null,null,null,null,null,null,null,null,null,null,null,null,null,null,{"$f":"ROUND(AI78*0.3,0)","v":9},null,null,null,null,null,null,null,null,null,null,null,null,{"$f":"AI78-2*AM74","v":11}]
[null,"Q9.  Given the shape is symmetrical. ",null,"Given the shape is symmetrical. ",null,null,null,null,null,null,null,null,null,null,null,null,null,null,null,null,null,null,null,null,null,null,{"$f":"ROUND(AI78*0.4,0)","v":12},null,null,null,null,null,null,null,null,null,null,null,null,null,null,null,null,null,null,null,null,null,null,null,null,{"$f":"AA75-AF76","v":6}]
[null,null,null,"Find the perimeter of the shape.",null,null,null,null,null,null,null,null,null,null,null,null,null,null,null,null,null,null,null,null,null,null,null,null,null,null,null,{"$f":"ROUND(AA75*0.51,0)","v":6}]
[null,null,null,"All value are in metres",null,null,null,null,null,null,null,null,null,null,null,null,null,null,null,null,null,null,"m",null,null,null,null,null,null,null,null,null,null,null,null,null,null,null,null,null,null,null,null,null,null,null,null,null,null,null,null,{"$f":"AI78+AA75+AM74+AZ75+AZ74+AZ75+AM74+AA75","v":94}]
[null,null,null,null,null,null,null,null,null,null,null,null,null,null,null,null,null,null,null,null,null,null,null,null,null,null,null,null,null,null,null,null,null,null,{"$f":"ROUND(RAND()*(80-20)+20,0)","v":29}]
[]
[]
[null,"Q10.  Find the perimeter of the composite shape.  All values are in millimetres."]
[null,null,null,null,null,null,null,null,null,null,null,null,null,null,null,null,null,null,null,null,null,null,null,null,null,null,null,null,null,null,null,null,null,null,null,null,null,{"$f":"ROUND(AJ89*0.6,0)","v":24}]
[null,null,null,null,null,null,null,null,null,null,null,null,null,null,null,null,null,null,null,null,null,null,"mm",null,null,null,null,null,null,null,null,null,null,null,null,{"$f":"AM85+ROUND(RAND()*(2-1)+1,0)","v":10},null,null,null,null,null,null,null,null,null,null,null,null,null,null,null,{"$f":"AJ89+AZ84+AZ85+AZ86+AZ87+AZ84","v":134}]
[null,null,null,null,null,null,null,null,null,null,null,null,null,null,null,null,null,null,null,null,null,null,null,null,null,null,null,null,null,null,null,null,null,null,null,null,null,null,null,null,null,null,null,null,null,null,null,null,null,null,null,{"$f":"AP87+AM85+AJ83","v":27}]
[null,null,null,null,null,null,null,null,null,null,null,null,null,null,null,null,null,null,null,null,null,null,null,null,null,null,null,null,null,null,null,null,null,null,null,null,null,null,{"$f":"AP87+ROUND(RAND()*(2-1)+1,0)","v":9},null,null,null,null,null,null,null,null,null,null,null,null,{"$f":"AJ89-AL82","v":16}]
[null,null,null,null,null,null,null,null,null,null,null,null,null,null,null,null,null,null,null,null,null,null,null,null,null,null,null,null,null,null,null,null,null,null,null,{"$f":"ROUND(AL82*0.4,0)","v":10},null,null,null,null,null,null,null,null,null,null,null,null,null,null,null,{"$f":"AJ86","v":10}]
[null,null,null,null,null,null,null,null,null,null,null,null,null,null,null,null,null,null,null,null,null,null,null,null,null,null,null,null,null,null,null,null,null,null,null,null,null,null,null,null,null,{"$f":"ROUND(AJ89*0.2,0)","v":8},{"$f":"ROUND(RAND()*(7-4)+4,0)","v":4},null,null,null,null,null,null,null,null,{"$f":"AL82-AJ86","v":14}]
[null,null,null,null,null,null,null,null,null,null,null,null,null,null,null,null,null,null,null,null,null,null,null,null,null,null,null,null,null,null,null,null,null,null,null,null,null,null,null,null,null,{"$f":"ROUND(RAND()*(7-4)+4,0)","v":5},{"$f":"ROUND(RAND()*(7-4)+4,0)","v":6}]
[null,null,null,null,null,null,null,null,null,null,null,null,null,null,null,null,null,null,null,null,null,null,null,null,null,null,null,null,null,null,null,null,null,null,null,{"$f":"ROUND(RAND()*(80-20)+20,0)","v":40}]